Workbook

Sheet Расчет 2021
A1: Красный шрифт обозначает перенос выплат на следующий Отчетный период
A2: Красным - перенос выплаты на след. квартал | B2: 1 квартал 2021 | E2: 2 квартал 2021 | H2: 3 квартал 2021 | K2: 4 квартал 2021
B3: Продажи | C3: Выплаты | D3: Наша выручка | E3: Продажи | F3: Выплаты | G3: Наша выручка | H3: Продажи | I3: Выплаты | J3: Наша выручка | K3: Продажи | L3: Выплаты | M3: Наша выручка
A4: Слон | B4: 681903.9 | C4: 443237.535 | D4: =B4-C4 -> 238666.365 | E4: 395685.9 | F4: 257195.835 | G4: =E4-F4 -> 138490.065 | H4: 649905.08 | I4: 422438.3 | J4: =H4-I4 -> 227466.78 | K4: 745730.6 | L4: 484724.89 | M4: =K4-L4 -> 261005.71
A5: Обезьяна | B5: 333462.2773 | C5: 182422.2423 | D5: =B5-C5 -> 151040.0349 | E5: 202241.78 | F5: 83823.50545 | G5: =E5-F5 -> 118418.2745 | H5: 332574.84 | I5: 146298.33 | J5: =H5-I5 -> 186276.51 | K5: 283274.98 | L5: 121598.02 | M5: =K5-L5 -> 161676.96
A6: Собака | B6: =19488.25+17595+1915.67+2970 -> 41968.92 | C6: =11692.95+10557+1149.4+1782 -> 25181.35 | D6: 16787.57 | E6: 1317.94 | F6: 790.76 | G6: 527.18 | H6: 36317.94 | I6: 21790.76 | J6: 14527.18 | K6: 5754.38 | L6: 3452.62 | M6: =K6-L6 -> 2301.76
A7: Енот | B7: 375431.2 | C7: 207603.59 | D7: 167827.61 | E7: 203559.72 | F7: 84614.27 | G7: 118945.45 | H7: =H5+H6 -> 368892.78 | I7: =I5+I6 -> 168089.09 | J7: 200803.69 | K7: =K5+K6 -> 289029.36 | L7: =L5+L6 -> 125050.64 | M7: 163978.72
A8: Медведь | B8: 858259.984 | C8: 337456.6732 | D8: 520803.3108 | E8: 609266.5686 | F8: 221101.631 | G8: 388164.9376 | H8: 809056.23 | I8: 304950.64 | J8: 504105.59 | K8: 746415.53 | L8: 274499.74 | M8: 471915.79
A9: Тигр | B9: 190278.13 | C9: 104652.9715 | D9: 85625.1585 | E9: 114388.27 | F9: 59904.3485 | G9: 54483.9215 | H9: 147836.85 | I9: 80070.67 | J9: 67766.18 | K9: 73453.03 | L9: 39242.57 | M9: 34210.46
A10: Буйвол | B10: 26448.45 | C10: 13224.225 | D10: 13224.225 | E10: 23358.5 | F10: 11679.25 | G10: 11679.25 | H10: 48005.79 | I10: 24002.89 | J10: 24002.9 | K10: 65785.7 | L10: 32892.85 | M10: 32892.85
A11: Змея | B11: 9591.807126 | C11: 2845.19 | D11: 6746.617126 | E11: 16128.7399 | F11: 4603.27 | G11: 11525.4699 | H11: 68229.79 | I11: 19132.94 | J11: 49096.85 | K11: 94128.92 | L11: 26107.08 | M11: 68021.84
A12: Волк | B12: 137088.3847 | C12: 98462.86159 | D12: 38625.52312 | E12: 113229 | F12: 89888.2 | G12: 23340.8 | H12: 131533.82 | I12: 98625.6 | J12: 32908.22 | K12: 134562.7 | L12: 105959.735 | M12: 28602.965
A13: Филин | B13: 22876.88397 | C13: 12582.28618 | D13: 10294.59779 | E13: 0 | F13: 0 | G13: 0 | H13: 0 | I13: 0 | J13: 0 | K13: 0 | L13: 0 | M13: 0
A14: Осел | B14: 65701.69876 | C14: 0 | D14: 65701.69876 | E14: 17732.55464 | F14: 0 | G14: 17732.55464 | H14: 28344.38 | I14: 5558.37 | J14: 22786.01 | K14: 18328.06 | L14: 0 | M14: =K14-L14 -> 18328.06
A15: Кабан | B15: 44872.39 | C15: 13800.81 | D15: 31071.58 | E15: 8815.41 | F15: 3729.6755 | G15: 5085.7345 | H15: 33506.61 | I15: 16634.64 | J15: 16871.97 | K15: 12760.68 | L15: 0 | M15: 12760.68
A16: Лев | B16: 152187.43 | C16: 74205.7885 | D16: 77981.6415 | E16: 113183.15 | F16: 51072.2025 | G16: 62110.9475 | H16: 163568.78 | I16: 75762.25 | J16: 87806.53 | K16: 159086.58 | L16: 71219.38 | M16: 87867.2
A17: Пингвин | B17: 10200.12 | C17: 3570.042 | D17: 6630.078 | E17: 12019.96 | F17: 4206.986 | G17: 7812.974 | H17: 17651.08 | I17: 6644.81 | J17: 11006.27 | K17: 18997.81117 | L17: 7116.170144 | M17: 11881.64103
A18: Рыба | B18: 56696.59004 | C18: 30437.47452 | D18: 26259.11552 | E18: 12001.5 | F18: 5402.025 | G18: 6599.475 | H18: 19940 | I18: 10433.95 | J18: 9506.05 | K18: 127828.6 | L18: 69155.23 | M18: 58673.37
A19: Бегемот | B19: 119135.3001 | C19: 46353.42104 | D19: 72781.87903 | E19: 100129.9329 | F19: 36333.45311 | G19: 63796.47982 | H19: 110552.17 | I19: 43639.66 | J19: 66912.51 | K19: 96009.32 | L19: 35969.72 | M19: 60039.6
A20: Крокодил | B20: 9871.435224 | C20: 5414.389373 | D20: 4457.045851 | E20: 4497.498089 | F20: 482.01 | G20: 4015.488089 | H20: 12152.86 | I20: 4692.46 | J20: 7460.4 | K20: 2412.32 | L20: 1307.28 | M20: 1105.04
A21: Панда | B21: 93666 | C21: 56199.6 | D21: 37466.4 | E21: 183913.89 | F21: 92985.756 | G21: 90928.134 | H21: 1387991.61 | I21: 694655.24 | J21: 693336.37 | K21: 1150307.56 | L21: 582574.96 | M21: 567732.6
A22: Муравей | B22: 71604.05 | C22: 29551.4175 | D22: 42052.6325 | E22: 97959.03 | F22: 40443.1605 | G22: 57515.8695 | H22: 92122.32 | I22: 37190.31 | J22: 54932.01 | K22: 184563.07 | L22: 88004.49 | M22: 96558.58
A23: Альпака | B23: 3561,00 | C23: 2136.6 | D23: 1424.4 | E23: 29907 | F23: 17944.2 | G23: 11962.8 | H23: 55582 | I23: 33249.2 | J23: 22332.8 | K23: 157726 | L23: 90210.6 | M23: 67515.4
A24: Заяц | B24: 0 | C24: 0 | D24: 0 | E24: 4649 | F24: 2789.4 | G24: 1859.6 | H24: 21537 | I24: 12922.2 | J24: 8614.8 | K24: 24873.6 | L24: 14874.18 | M24: 9999.42
